bitfinex-derivatives/quotes_ETHF0:USTF0_20250112
["timestamp","ask_amount","ask_price","bid_price","bid_amount"]
[1736655754308,0.21306,3286.9,3286.8,0.4688]
[1736655755814,0.21306,3286.9,3286.8,0.68187]
[1736655756708,0.21306,3286.9,3286.8,1.15577]
[1736655759718,0.21306,3287.0,3286.9,0.21306]
[1736655760015,0.4503,3287.1,3286.8,0.9427]
[1736655760218,0.21306,3286.9,3286.8,1.15576]
[1736655760918,0.21306,3287.0,3286.9,0.21306]
[1736655771020,0.21306,3286.9,3286.8,4.36356]
[1736655771809,1.21548268,3286.9,3286.8,4.1505]
[1736655772016,1.21548268,3286.9,3286.8,3.2078]
[1736655775423,1.21548268,3286.9,3286.8,3.42087]
[1736655775725,1.21548268,3286.9,3286.8,4.34397]
[1736655775926,1.21548268,3286.9,3286.8,4.1309]
[1736655778923,1.00242268,3286.9,3286.7,0.4444]
[1736655779118,0.67887,3286.8,3286.7,0.4444]
[1736655782735,0.21307,3286.8,3286.7,0.65747]
[1736655784027,0.21307,3286.8,3286.7,0.4444]
[1736655808864,0.21307,3286.8,3286.7,0.65747]
[1736655810057,0.21307,3286.8,3286.7,0.4444]
[1736655817569,0.21307,3286.8,3286.7,0.65747]
[1736655819670,1.43722268,3287.3,3286.9,0.21306]
[1736655819875,0.21306,3287.0,3286.9,1.21548268]
[1736655820970,0.21306,3287.0,3286.9,1.00242268]
[1736655821174,0.21306,3287.0,3286.9,1.21548268]
[1736655825277,0.21306,3287.0,3286.9,1.00242268]
[1736655826980,0.21306,3287.0,3286.8,3.87966]
[1736655826981,1.00242268,3287.2,3286.8,3.6666]
[1736655827279,0.21306,3286.9,3286.8,3.6666]
[1736655828074,0.21306,3286.9,3286.8,0.4588]
[1736655829484,0.21306,3286.9,3286.8,0.67187]
[1736655831785,0.21306,3286.9,3286.8,1.14527]
[1736655833987,0.21306,3286.9,3286.8,0.9322]
[1736655847592,0.65706,3286.9,3286.8,0.9322]
[1736655851792,0.65706,3286.9,3286.8,0.4588]
[1736655853301,0.21305,3287.0,3286.8,1.46122268]
[1736655853600,0.21305,3287.1,3287.0,0.21305]
[1736655853800,0.21305,3287.1,3287.0,1.21547268]
[1736655854991,3.2078,3287.2,3286.9,0.4674]
[1736655855298,0.21305,3287.0,3286.9,0.4674]
[1736655861704,0.21307,3286.8,3286.7,0.4444]
[1736655861904,0.21307,3286.8,3286.7,0.9001]
[1736655864819,0.21307,3286.8,3286.7,0.4444]
[1736655865002,0.21308,3286.5,3286.4,3.2078]
[1736655865206,1.21550268,3286.5,3286.4,3.2078]
[1736655866124,0.2131,3286.3,3286.2,0.4608]
[1736655871428,0.2131,3286.3,3286.2,0.9026]
[1736655876126,0.2131,3286.3,3286.2,1.1157]
[1736655876326,0.21309,3286.4,3286.3,0.2131]
[1736655876627,0.21309,3286.4,3286.3,0.6851]
[1736655877232,1.44872268,3286.7,3286.3,0.472]
[1736655877428,1.44872268,3286.7,3286.3,3.6798]
[1736655877634,0.21309,3286.5,3286.4,0.21309]
[1736655877930,1.44872268,3286.7,3286.3,3.6798]
[1736655878124,0.21309,3286.5,3286.4,0.21309]
[1736655878329,0.21309,3286.4,3286.3,0.6851]
[1736655886333,0.21309,3286.4,3286.3,0.472]
[1736655886529,1.21551268,3286.5,3286.4,0.21309]
[1736655886729,0.21309,3286.5,3286.4,0.21309]
[1736655894327,1.00242268,3286.7,3286.3,0.472]
[1736655894531,0.21307,3286.8,3286.7,0.21307]
[1736655896539,0.21308,3286.7,3286.6,0.21307]
[1736655898238,1.21550268,3286.7,3286.6,0.21307]
[1736655902735,0.21308,3286.7,3286.6,0.21307]
[1736655911148,0.21306,3286.9,3286.8,0.21306]
[1736655911447,10.77709875,3287.1,3286.9,0.21305]
[1736655911448,0.21306,3287.0,3286.9,0.21305]
[1736655912841,10.77709875,3287.1,3286.8,1.00242268]
[1736655913046,10.77709875,3287.1,3286.8,1.21548268]
[1736655913047,0.21306,3286.9,3286.8,1.21548268]
[1736655914753,1.00242268,3287.3,3286.8,1.00242268]
[1736655914947,0.21305,3287.1,3287.0,1.21547268]
[1736655915251,4.21022268,3287.4,3287.0,1.00242268]
[1736655915448,0.21305,3287.1,3287.0,1.21547268]
[1736655916748,0.21304,3287.2,3287.1,0.21304]
[1736655922560,0.21303,3287.4,3287.1,0.21305]
[1736655922761,0.21303,3287.4,3287.3,1.21545268]
[1736655924347,3.2078,3287.6,3287.3,1.00242268]
[1736655924565,3.42082,3287.6,3287.5,1.21544268]
[1736655927755,3.668,3288.0,3287.5,1.00242268]
[1736655927959,0.213,3287.9,3287.8,0.213]
[1736655931460,0.213,3287.9,3287.8,0.6665]
[1736655931660,0.213,3287.9,3287.8,1.1265]
[1736655933169,0.213,3287.9,3287.8,1.566]
[1736655937973,0.21299,3288.0,3287.9,0.21299]
[1736655939368,0.28489648,3288.1,3287.9,1.00242268]
[1736655939574,0.49787648,3288.1,3288.0,0.21299]
[1736655939875,0.28489648,3288.1,3288.0,0.21299]
[1736655941577,0.49787648,3288.1,3288.0,0.21299]
[1736655942273,0.28489648,3288.1,3288.0,0.21299]
[1736655943068,0.49787648,3288.1,3288.0,0.21299]
[1736655943270,0.28489648,3288.1,3287.8,1.353]
[1736655943471,0.21299,3287.9,3287.8,1.566]
[1736655944168,0.67589,3287.9,3287.8,1.566]
[1736655944368,0.21299,3287.9,3287.8,1.566]
[1736655945876,0.65439,3288.0,3287.9,0.21299]
[1736655946674,0.28489648,3288.1,3288.0,0.21299]
[1736655946877,0.28489648,3288.1,3287.9,0.21299]
[1736655947280,0.28489648,3288.1,3287.8,1.353]
[1736655947474,0.49787648,3288.1,3288.0,0.21299]
[1736655948578,0.28489648,3288.1,3288.0,0.21299]
[1736655949578,0.21298,3288.2,3287.9,1.00242268]
[1736655949780,0.21298,3288.2,3288.1,0.21298]
[1736655951386,3.2078,3288.4,3288.1,1.00242268]
[1736655951581,0.21296,3288.5,3288.4,0.21296]
[1736655951779,0.21296,3288.5,3288.4,0.67686]
[1736655958687,1.43692268,3288.7,3288.2,0.9111]
[1736655958891,1.43692268,3288.7,3288.2,0.65697]
[1736655958892,0.21297,3288.3,3288.2,0.65697]
[1736655959690,0.67747,3288.3,3288.2,0.65697]
[1736655959986,0.67747,3288.3,3288.2,0.444]
[1736655960292,0.67747,3288.3,3288.2,0.65697]
[1736655963495,0.21295,3288.6,3288.4,0.21296]
[1736655963695,0.21297,3288.4,3288.3,0.21296]
[1736655965900,0.21296,3288.5,3288.4,0.21296]
[1736655968698,0.4785,3288.8,3288.2,1.89202268]
[1736655968897,0.21294,3288.7,3288.6,0.21294]
[1736655969100,0.4785,3288.8,3288.2,2.42446268]
[1736655969303,0.69144,3288.8,3288.7,0.21294]
[1736655970501,0.21294,3288.8,3288.7,0.21294]
[1736655970902,0.21294,3288.7,3288.6,1.11044]
[1736655974713,2.4649931,3289.2,3288.7,0.21294]
[1736655974714,0.21294,3288.8,3288.7,0.21294]
[1736655976306,10.77709875,3289.4,3288.8,0.53235]
[1736655976606,10.77709875,3289.4,3289.3,1.21532268]
[1736655976808,9.16254649,3289.8,3289.7,0.21288]
[1736655977011,9.16254649,3289.8,3289.7,3.42068]
[1736655977206,9.16254649,3289.8,3289.7,4.42310268]
[1736655977404,9.16254649,3289.8,3289.7,3.42068]
[1736655978313,0.21285,3290.1,3289.7,3.2078]
[1736655978519,4.1251,3290.3,3289.9,0.21286]
[1736655978709,0.21286,3290.0,3289.9,0.21286]
[1736655979418,0.21286,3290.0,3289.8,0.65437]
[1736655979615,0.21286,3290.0,3289.9,0.46]
[1736655981912,0.21286,3290.0,3289.8,0.21287]
[1736655983015,0.21286,3290.0,3289.9,0.21286]
[1736655983913,0.2126,3290.2,3289.9,0.21286]
[1736655984113,0.21286,3290.1,3289.9,0.21286]
[1736655984517,0.21286,3290.0,3289.9,0.21286]
[1736655984717,0.2126,3290.2,3289.9,0.21286]
[1736655984718,0.21286,3290.1,3289.9,0.21286]
[1736655985219,0.2126,3290.2,3289.9,0.21286]
[1736655985420,0.21286,3290.0,3289.7,3.2078]
[1736655985622,0.21286,3290.0,3289.9,0.21286]
[1736655986311,0.21286,3290.1,3289.9,0.21286]
[1736655987116,0.21286,3290.1,3289.7,3.2078]
[1736655987419,0.21286,3290.1,3290.0,0.21286]
[1736655988020,0.21286,3290.1,3290.0,0.21132939]
[1736655994720,0.21285,3290.2,3289.9,0.4324]
[1736655994921,0.21285,3290.2,3290.1,0.21285]
[1736655996127,0.21285,3290.1,3290.0,0.21285]
[1736655997530,0.4675,3290.4,3289.9,1.43130393]
[1736655997831,3.2078,3290.5,3290.1,0.99890393]
[1736655998027,3.42063,3290.5,3290.4,0.21283]
[1736655998227,0.21283,3290.4,3290.3,0.21283]
[1736655998435,0.21283,3290.4,3290.3,0.65344]
[1736655999535,0.21283,3290.4,3290.3,0.4406]
[1736655999930,0.21283,3290.4,3290.3,0.65344]
[1736656001336,0.21283,3290.4,3290.3,0.4406]
[1736656004440,0.21283,3290.4,3290.3,0.898]
[1736656007442,0.21284,3290.3,3290.2,0.4698]
[1736656007735,0.67694,3290.3,3290.2,0.4698]
[1736656011446,0.21284,3290.3,3290.2,0.9284]
[1736656016842,0.21286,3290.0,3289.9,0.4613]
[1736656018846,0.21286,3289.9,3289.8,0.9269]
[1736656025049,0.21286,3289.9,3289.8,1.4034]
[1736656027745,0.21286,3289.9,3289.8,1.61627]
[1736656029646,0.21286,3289.9,3289.8,1.4034]
[1736656032147,0.21286,3289.9,3289.8,1.61627]
[1736656032555,0.21286,3289.9,3289.8,1.4034]
[1736656032755,0.21286,3289.9,3289.8,1.61627]
[1736656033449,0.21286,3289.9,3289.8,1.4034]
[1736656033751,0.21286,3289.9,3289.8,0.66077]
[1736656035355,0.21286,3289.9,3289.8,0.4479]
[1736656035555,0.21286,3289.9,3289.8,0.66077]
[1736656036047,0.21286,3289.9,3289.8,0.4479]
[1736656036548,0.21286,3289.9,3289.8,0.66077]
[1736656040753,0.21286,3290.0,3289.9,0.21286]
[1736656040948,0.21286,3289.9,3289.8,0.66077]
[1736656045760,4.3798,3290.2,3289.8,0.4479]
[1736656045949,0.21286,3290.0,3289.9,0.21286]
[1736656060267,16.35435417,3290.2,3290.0,0.21285]
[1736656060268,0.21286,3290.1,3290.0,0.21285]
[1736656060566,0.21286,3290.0,3289.9,0.21286]
[1736656060959,0.21285,3290.1,3290.0,0.21285]
[1736656072770,0.21286,3289.9,3289.8,0.4479]
[1736656072973,0.99890393,3289.9,3289.0,8.73250928]
[1736656073272,0.99890393,3289.5,3289.4,0.2129]
[1736656073475,1.21179393,3289.5,3289.4,0.2129]
[1736656073874,0.99890393,3289.5,3289.1,1.4157]
[1736656074078,1.21179393,3289.5,3289.4,0.2129]
[1736656074272,0.99890393,3289.5,3289.1,1.4157]
[1736656074473,0.21291,3289.3,3289.2,0.21291]
[1736656074677,0.2129,3289.4,3289.3,0.2129]
[1736656076290,1.21179393,3289.5,3289.4,0.2129]
[1736656076488,0.21289,3289.5,3289.4,0.2129]
[1736656077391,3.2078,3289.6,3289.2,0.99890393]
[1736656077590,0.2129,3289.4,3289.3,0.2129]
[1736656082995,0.21291,3289.3,3289.2,0.21291]
[1736656096899,4.6248,3289.8,3289.2,0.99890393]
[1736656096900,4.0926,3289.8,3289.2,0.99890393]
[1736656097101,5.2646,3289.8,3289.2,0.99890393]
[1736656097502,0.21289,3289.5,3289.4,0.21289]
[1736656108019,3.2078,3290.2,3289.4,4.20670393]
[1736656108312,0.21288,3289.7,3289.6,1.21178393]
[1736656110616,0.21288,3289.6,3289.5,1.3662]
[1736656110817,0.21288,3289.6,3289.5,1.57909]
[1736656113621,0.21288,3289.6,3289.5,1.3662]
[1736656117717,0.21288,3289.6,3289.5,0.445]
[1736656118017,0.21291,3289.2,3289.1,0.8863]
[1736656118227,0.21291,3289.2,3289.1,1.3353]
[1736656136441,0.21291,3289.2,3289.1,1.54822]
[1736656136940,0.21291,3289.2,3289.1,1.3353]
[1736656138539,0.21291,3289.2,3289.1,0.449]
[1736656138739,0.68991,3289.2,3289.1,0.449]
[1736656146950,0.21291,3289.2,3289.1,0.449]
[1736656155260,0.21291,3289.2,3289.1,0.8976]
[1736656156667,0.21291,3289.2,3289.1,1.11052]
[1736656156962,0.2129,3289.3,3289.2,0.2129]
[1736656157152,5.59160393,3289.4,3289.3,0.2129]
[1736656157758,3.2078,3289.4,3289.2,0.461]
[1736656157963,0.2129,3289.3,3289.2,0.6739]
[1736656168665,0.2129,3289.3,3289.2,0.461]
[1736656190478,0.21291,3289.2,3289.1,0.8976]
[1736656190679,1.67331393,3289.2,3289.1,0.8976]
[1736656191374,1.67331393,3289.2,3288.9,3.2078]
[1736656191375,0.21292,3289.0,3288.9,3.2078]
[1736656192683,1.46040393,3289.2,3288.7,0.9403]
[1736656192885,0.21294,3288.8,3288.7,0.9403]
[1736656193783,0.21294,3288.8,3288.7,1.15324]
[1736656194584,1.21184393,3288.8,3288.7,0.9403]
[1736656205385,1.21184393,3288.8,3288.7,1.15324]
[1736656205586,0.21294,3288.8,3288.7,1.15324]
[1736656205983,0.21294,3288.8,3288.7,0.9403]
[1736656206386,0.21294,3288.8,3288.7,1.15324]
[1736656207284,0.21294,3288.8,3288.7,0.9403]
[1736656207489,0.21294,3288.8,3288.7,1.15324]
[1736656214091,0.21293,3288.9,3288.8,0.21293]
[1736656214486,0.21294,3288.8,3288.7,1.15324]
[1736656215488,0.21294,3288.8,3288.7,0.9403]
[1736656230601,0.21294,3288.8,3288.7,1.15324]
[1736656230802,0.21294,3288.8,3288.7,0.9403]
[1736656231407,0.21294,3288.8,3288.7,1.15324]
[1736656231603,0.21294,3288.8,3288.7,0.9403]
[1736656231805,0.21294,3288.8,3288.7,1.15324]
[1736656236717,0.21294,3288.8,3288.7,0.9403]
[1736656237212,0.99890393,3289.1,3288.7,0.9403]
[1736656237418,3.6676,3289.3,3288.7,0.9403]
[1736656237611,0.99890393,3289.2,3288.7,0.9403]
[1736656237812,0.21293,3289.0,3288.9,0.21293]
[1736656239313,0.99890393,3289.2,3288.7,0.9403]
[1736656239512,0.21292,3289.1,3289.0,0.21292]
[1736656239719,0.21292,3289.1,3288.7,0.9403]
[1736656239720,0.21292,3289.1,3288.9,0.21292]
[1736656240018,0.21292,3289.1,3289.0,0.4446]
[1736656240223,0.21292,3289.1,3289.0,0.8845]
[1736656245220,0.21292,3289.1,3289.0,1.09742]
[1736656247929,0.21291,3289.2,3289.1,0.21291]
[1736656249427,0.99890393,3289.4,3289.0,0.8845]
[1736656249629,0.21292,3289.1,3289.0,1.09742]
[1736656251828,0.21291,3289.2,3289.1,0.21291]
[1736656252728,0.99890393,3289.4,3289.0,0.8845]
[1736656253026,0.21291,3289.2,3289.1,0.21292]
[1736656253224,0.21291,3289.3,3289.2,0.21291]
[1736656254228,0.99890393,3289.4,3289.1,0.4527]
[1736656254829,0.21291,3289.2,3289.1,0.66561]
[1736656257340,0.99890393,3289.4,3289.1,0.4527]
[1736656257630,0.21291,3289.3,3289.2,0.21291]
[1736656262228,0.99890393,3289.4,3289.1,0.4527]
[1736656262423,0.21291,3289.2,3289.1,0.66561]
[1736656262931,0.21291,3289.2,3289.1,0.4527]
[1736656263129,0.21291,3289.2,3289.1,0.66562]
[1736656267125,0.21291,3289.2,3289.1,0.4527]
[1736656268342,0.21291,3289.2,3289.1,0.66562]
[1736656268839,0.21291,3289.2,3289.1,0.4527]
[1736656271734,0.21291,3289.2,3289.1,0.8971]
[1736656275738,0.21291,3289.2,3289.1,0.4527]
[1736656276047,1.21181393,3289.2,3289.1,0.4527]
[1736656277447,0.21294,3288.8,3288.7,2.14874393]
[1736656278543,0.21294,3288.8,3288.7,1.93580393]
[1736656280447,0.21294,3288.8,3288.7,2.14874393]
[1736656281644,0.21294,3288.8,3288.7,1.93580393]
[1736656282144,0.21294,3288.8,3288.7,2.14874393]
[1736656284147,0.99890393,3289.2,3288.7,1.93580393]
[1736656284449,0.21293,3288.9,3288.8,0.21293]
[1736656287153,0.99890393,3289.2,3288.7,5.19005119]
[1736656287453,0.21294,3288.8,3288.7,5.40299119]
[1736656288751,0.21293,3288.9,3288.8,0.21293]
[1736656291356,0.99890393,3289.2,3288.7,5.19005119]
[1736656291659,0.21293,3288.9,3288.8,0.21293]
[1736656292255,0.99890393,3289.2,3288.7,5.19005119]
[1736656292454,0.21293,3289.0,3288.9,0.21293]
[1736656297855,0.21292,3289.1,3288.9,0.21292]
[1736656298162,0.21293,3289.0,3288.9,0.21292]
[1736656299460,0.99890393,3289.0,3288.7,4.19114726]
[1736656299763,1.21184393,3288.8,3288.7,4.40408726]
[1736656300563,1.21184393,3288.8,3288.7,4.19114726]
[1736656300760,1.21184393,3288.8,3288.7,4.40408726]
[1736656303256,0.21294,3288.8,3288.7,4.40408726]
[1736656306764,0.67443,3288.9,3288.8,0.21294]
[1736656315266,0.21294,3288.8,3288.7,4.40408726]
[1736656324355,0.21294,3288.9,3288.8,0.21293]
[1736656327871,0.21293,3289.0,3288.9,0.21292]
[1736656329472,1.21182393,3289.2,3289.1,0.21291]
[1736656329673,0.21292,3289.0,3288.7,4.19114726]
[1736656329873,1.21182393,3289.0,3288.9,0.21293]
[1736656330567,0.21294,3288.8,3288.7,4.19114726]
[1736656330772,1.21184393,3288.8,3288.7,4.19114726]
[1736656337780,1.21184393,3288.8,3288.7,4.40408726]
[1736656337980,1.21184393,3288.8,3288.7,4.19114726]
[1736656341177,1.21184393,3288.8,3288.0,5.31309463]
[1736656341178,0.99890393,3288.8,3288.0,4.78063463]
[1736656341385,1.21188393,3288.1,3288.0,4.78063463]
[1736656342197,0.99890393,3288.1,3287.8,0.9334]
[1736656342397,1.21189393,3287.9,3287.8,0.9334]
[1736656343286,1.21189393,3287.9,3287.8,0.4693]
[1736656344592,1.21189393,3287.9,3287.8,0.9205]
[1736656347694,1.21189393,3287.9,3287.8,0.4693]
[1736656348592,0.99890393,3287.9,3287.6,0.4614]
[1736656348796,1.21191393,3287.7,3287.6,0.4614]
[1736656348991,2.16990393,3287.7,3287.5,0.4529]
[1736656349301,3.42081,3287.6,3287.5,0.4529]
[1736656349495,4.34411,3287.6,3287.5,0.4529]
[1736656350300,3.88431,3287.6,3287.5,0.4529]
[1736656350503,0.67651,3287.6,3287.5,0.4529]
[1736656352502,3.88431,3287.6,3287.5,0.4529]
[1736656353807,0.67651,3287.6,3287.5,0.4529]
[1736656359899,0.21301,3287.6,3287.5,0.4529]
[1736656367403,0.21301,3287.6,3287.5,0.66592]
[1736656367903,0.21301,3287.6,3287.5,0.4529]
[1736656378006,0.69221,3287.6,3287.5,0.4529]
[1736656380211,0.21301,3287.6,3287.5,0.4529]
[1736656382816,1.21191393,3287.6,3287.5,0.4529]
[1736656390120,0.99890393,3287.6,3287.5,0.4529]
[1736656390320,3.3738,3288.2,3287.5,0.4529]
[1736656390321,3.91290393,3288.2,3287.5,0.4529]
[1736656390621,0.213,3287.9,3287.7,4.41970393]
[1736656390924,0.213,3287.9,3287.8,0.4425]
[1736656391125,0.213,3287.9,3287.8,0.8948]
[1736656392921,0.99890393,3288.0,3287.9,0.21299]
[1736656392922,0.21299,3288.0,3287.9,0.21299]
[1736656395120,0.21298,3288.1,3288.0,0.21299]
[1736656396527,0.21298,3288.1,3287.8,0.8948]
[1736656396727,0.21298,3288.1,3287.9,0.21299]
[1736656396928,0.21298,3288.1,3288.0,0.4424]
[1736656397725,1.21188393,3288.2,3288.0,0.4424]
[1736656397925,1.21188393,3288.2,3288.0,0.65538]
[1736656398824,0.21297,3288.3,3288.1,0.21298]
[1736656399026,0.21296,3288.5,3288.3,0.21297]
[1736656399224,11.97455417,3288.7,3288.4,0.463]
[1736656399422,11.97455417,3288.7,3288.6,0.21295]
[1736656399816,11.97455417,3288.7,3288.6,0.64865]
[1736656400017,1.21183393,3288.9,3288.6,0.4357]
[1736656400220,0.21294,3288.8,3288.6,0.64864]
[1736656400621,1.21183393,3288.9,3288.7,0.21294]
[1736656402325,1.21183393,3288.9,3288.6,0.4357]
[1736656402524,3.2078,3289.2,3288.7,0.99890393]
[1736656402826,0.21291,3289.3,3289.1,0.21291]
[1736656403025,0.21291,3289.3,3289.0,0.99890393]
[1736656403026,0.21291,3289.3,3289.2,1.3467]
[1736656411640,0.2129,3289.3,3289.2,1.3467]
[1736656415846,0.2129,3289.3,3289.2,1.55961]
[1736656418236,0.2129,3289.3,3289.2,1.3467]
[1736656418641,0.2129,3289.3,3289.2,1.55961]
[1736656420246,0.2129,3289.3,3289.2,1.3467]
[1736656422152,0.6601,3289.3,3289.2,1.3467]
[1736656422457,0.21291,3289.2,3289.1,0.21291]
[1736656422753,1.21181393,3289.2,3289.1,0.21291]
[1736656424959,1.21181393,3289.2,3289.1,0.65791]
[1736656426253,1.21181393,3289.2,3289.1,0.445]
[1736656426650,1.21181393,3289.2,3289.1,0.65792]
[1736656428956,0.99890393,3289.2,3289.0,3.2078]
[1736656429157,0.21292,3289.0,3288.9,1.11732]
[1736656429457,0.99890393,3289.2,3288.9,0.9044]
[1736656429759,0.21292,3289.1,3289.0,0.21292]
[1736656432260,0.21292,3289.0,3288.9,1.11732]
[1736656435755,0.21292,3289.1,3289.0,0.21292]
[1736656436055,0.99890393,3289.2,3288.9,0.9044]
[1736656436455,0.99890393,3289.0,3288.9,1.11733]
[1736656437462,1.21182393,3289.0,3288.9,1.11733]
[1736656437761,0.99890393,3289.0,3288.9,1.11733]
[1736656438262,1.21182393,3289.0,3288.9,1.11733]
[1736656438456,1.21182393,3289.0,3288.9,0.9044]
[1736656438656,1.21182393,3289.0,3288.9,1.11733]
[1736656440360,0.99890393,3289.0,3288.9,1.11733]
[1736656441261,1.21182393,3289.0,3288.9,1.11733]
[1736656444656,1.21182393,3289.0,3288.9,0.9044]
[1736656444962,1.21182393,3289.0,3288.9,0.4678]
[1736656445166,1.21182393,3289.0,3288.7,0.462]
[1736656445167,0.21294,3288.8,3288.7,0.462]
[1736656445468,1.21184393,3288.8,3288.7,0.462]
[1736656456171,1.21184393,3288.8,3288.6,0.68945]
[1736656456367,0.21294,3288.7,3288.6,0.4765]
[1736656457071,0.21294,3288.7,3288.6,0.68945]
[1736656457772,0.21294,3288.7,3288.6,0.4765]
[1736656462974,0.65724,3288.7,3288.6,0.4765]
[1736656464281,0.21296,3288.5,3288.4,0.4413]
[1736656467870,1.45960393,3288.6,3288.3,0.8956]
[1736656468081,1.21186393,3288.4,3288.3,0.8956]
[1736656494102,1.21186393,3288.4,3288.3,1.10857]
[1736656495109,1.21186393,3288.4,3288.3,0.8956]
[1736656504221,4.20670393,3288.8,3288.3,0.8956]
[1736656504415,4.20670393,3288.8,3288.4,3.2078]
[1736656504718,4.41964393,3288.8,3288.7,0.21294]
[1736656505115,0.21294,3288.7,3288.6,0.21295]
[1736656505316,4.41964393,3288.8,3288.6,0.21295]
[1736656505519,4.41964393,3288.8,3288.7,1.3888]
[1736656516416,3.2078,3288.8,3288.7,1.3888]
[1736656516622,3.2078,3288.8,3288.7,1.60174]
[1736656516822,4.41964393,3288.8,3288.7,1.3888]
[1736656518020,4.20670393,3288.8,3288.7,1.3888]
[1736656518221,3.2078,3288.8,3288.7,1.60174]
[1736656520518,0.21293,3288.9,3288.7,1.60174]
[1736656520825,0.99890393,3289.0,3288.8,0.21294]
[1736656521025,1.21183393,3289.0,3288.8,0.21294]
[1736656521326,0.21293,3288.9,3288.8,0.21294]
[1736656521627,0.21294,3288.8,3288.7,1.3888]
[1736656521822,1.21184393,3288.8,3288.7,1.3888]
[1736656525324,1.21184393,3288.8,3288.7,0.4377]
[1736656545640,0.21294,3288.8,3288.7,0.65064]
[1736656545842,0.99890393,3289.0,3288.7,0.65064]
[1736656546045,0.21293,3288.9,3288.7,0.65064]
[1736656546238,0.21293,3288.9,3288.8,0.4686]
[1736656577276,0.21293,3288.9,3288.8,0.68154]
[1736656578968,0.21293,3288.9,3288.8,1.68044393]
[1736656579578,0.21293,3289.0,3288.9,0.21293]
[1736656579770,0.21293,3289.0,3288.9,0.64553]
[1736656586784,0.21291,3289.2,3289.1,0.21291]
[1736656586978,15.39526417,3289.3,3289.2,0.21291]
[1736656587175,15.39526417,3289.3,3289.2,0.67421]
[1736656587482,15.39526417,3289.3,3289.2,1.11851]
[1736656588074,3.42071,3289.3,3289.2,1.11851]
[1736656589279,0.21291,3289.3,3289.2,4.32631]
[1736656592880,0.2129,3289.4,3289.3,0.2129]
[1736656593079,0.2129,3289.4,3289.3,0.6904]
[1736656594283,0.2129,3289.5,3289.3,0.6904]
[1736656595086,1.46770393,3289.6,3289.3,0.4775]
[1736656595385,0.2129,3289.4,3289.3,0.4775]
[1736656596780,0.2129,3289.4,3289.3,3.6853]
[1736656597186,0.21289,3289.5,3289.3,3.8982]
[1736656599586,0.21289,3289.5,3289.3,0.6904]
[1736656599788,0.21289,3289.5,3289.4,3.2078]
[1736656600787,0.21286,3290.0,3289.5,0.21289]
[1736656600992,3.2078,3290.1,3289.9,0.99890393]
[1736656601194,12.18740417,3290.2,3290.0,1.11806]
[1736656601389,12.18740417,3290.2,3290.1,0.444]
[1736656601390,13.1863081,3290.2,3290.1,0.444]
[1736656601596,1.21175393,3290.2,3290.1,0.444]
[1736656615696,0.21285,3290.2,3290.1,0.444]
[1736656617300,0.21283,3290.5,3290.1,1.44290393]
[1736656617600,0.21283,3290.5,3290.4,0.99890393]
[1736656618000,0.21283,3290.5,3290.4,1.45490393]
[1736656618794,3.2078,3290.6,3290.4,1.45490393]
[1736656618994,3.42062,3290.6,3290.5,0.4434]
[1736656620698,3.42062,3290.6,3290.5,0.65623]
[1736656620901,3.42062,3290.6,3290.5,0.4434]
[1736656621108,4.41952393,3290.6,3290.5,0.4434]
[1736656621307,0.21283,3290.5,3290.4,0.456]
[1736656627509,0.21283,3290.5,3290.4,0.66883]
[1736656627812,0.21283,3290.5,3290.4,0.456]
[1736656630917,0.21283,3290.5,3290.4,0.66883]
[1736656631117,0.21283,3290.5,3290.4,0.456]
[1736656633114,0.99890393,3290.6,3290.2,3.2078]
[1736656633310,0.21286,3289.9,3289.4,3.2078]
[1736656633509,0.21289,3289.5,3289.4,3.2078]
[1736656633720,0.21291,3289.2,3289.1,5.22293463]
[1736656634919,0.21291,3289.2,3289.1,0.4423]
[1736656635619,1.21181393,3289.2,3289.1,0.4423]
[1736656635815,0.21292,3289.0,3288.9,4.0901]
[1736656636016,1.21182393,3289.0,3288.9,4.0901]
[1736656638829,1.21182393,3289.0,3288.9,3.2078]
[1736656640928,0.99890393,3289.0,3288.9,3.2078]
[1736656641230,1.21182393,3289.0,3288.9,3.42073]
[1736656641823,1.21182393,3289.0,3288.9,3.2078]
[1736656643927,1.21182393,3289.0,3288.9,0.21293]
[1736656644130,1.21182393,3289.0,3288.9,3.42073]
[1736656644322,0.99890393,3289.2,3288.9,3.2078]
[1736656644527,0.21292,3289.1,3289.0,0.21292]
[1736656644727,0.21292,3289.1,3289.0,0.67572]
[1736656646531,0.21292,3289.1,3289.0,0.4628]
[1736656646834,0.21292,3289.1,3289.0,0.67572]
[1736656647535,0.21292,3289.1,3289.0,0.4628]
[1736656647932,0.99890393,3289.2,3288.9,3.2078]
[1736656648235,1.64672393,3289.0,3288.9,3.2078]
[1736656650436,1.21182393,3289.0,3288.9,3.2078]
[1736656652439,1.21182393,3289.0,3288.9,3.42073]
[1736656654632,0.99890393,3289.0,3288.8,0.4597]
[1736656654841,0.21293,3288.9,3288.8,0.67263]
[1736656657238,1.21183393,3289.0,3288.9,0.21293]
[1736656659042,0.21293,3289.0,3288.9,0.21293]
[1736656660738,0.21292,3289.2,3289.1,0.21291]
[1736656660944,1.21182393,3289.2,3289.1,0.21291]
[1736656661941,0.21292,3289.1,3289.0,0.21292]
[1736656668049,4.112,3289.4,3288.8,0.4597]
[1736656668441,0.21292,3289.1,3289.0,0.21292]
[1736656672744,0.99890393,3289.2,3288.8,3.6675]
[1736656672949,0.21291,3289.3,3289.2,0.21291]
[1736656673352,1.21181393,3289.3,3289.2,0.21291]
[1736656674039,0.99890393,3289.3,3289.2,0.21291]
[1736656675851,0.2129,3289.4,3289.3,0.2129]
[1736656676450,0.21291,3289.3,3289.0,0.4784]